Cogmind - Beta 13 @@@ ROGUE MODE // 2024.03.25 @ 23:21:52 Player: Desymo99 Result: Destroyed by G-47 Trooper with Particle Gun Performance ------------- Evolutions (2) 1000 Regions Visited (6) 1200 Robots Destroyed (108) 540 Value Destroyed (2484) 2484 Prototype IDs (24) 480 Alien Tech Used (0) 0 Bonus (825) 825 TOTAL SCORE: 6529 Bonus ------- High Alert Combat Kills 370 Follower Combat Kills 155 Aligned with FarCom 300 Cogmind --------- Core Integrity 0/550 Matter 287/300 Energy 28/100 System Corruption 6% Temperature Danger (490) Movement Core (150) Ox2 Location -8/Storage Parts ------- > --- POWER (1) -------- (None) > --- PROPULSION (4) --- (None) > --- UTILITY (4) ------ (None) > --- WEAPON (2) ------- Advanced Beam Cannon Advanced Beam Cannon > --- INVENTORY (5) ---- Light Treads XL Autogun Array Peak State ------------ > --- POWER ------------ Nuclear Core > --- PROPULSION ------- Aluminum Leg Carbon-fiber Leg Potential Leg Potential Leg > --- UTILITY ---------- Huge Storage Unit Improved Sensor Array Targeting Computer Hacking Suite > --- WEAPON ----------- Assault Rifle Rocket Launcher > --- INVENTORY -------- Ion Engine Light Treads Light Treads Light Treads Light Treads Light Treads Improved Heat Sink High-capacity Matter Pod Weight Redist. System Structural Scanner Visual Processing Unit Sensor Array Signal Interpreter Improved Terrain Scanner Hacking Suite Hacking Suite Beam Cannon Assault Rifle Assault Rifle Light Assault Rifle XL Autogun Array Makeshift Spear [Rating: 45] Favorites ----------- Power Light Nuclear Core Engine Ion Engine Power Core Light Nuclear Core Propulsion Light Treads Treads Light Treads Leg Potential Leg Utility Hacking Suite Device Improved Sensor Array Storage Huge Storage Unit Processor Targeting Computer Hackware Hacking Suite Weapon Assault Rifle Energy Gun Small Laser Energy Cannon Beam Cannon Ballistic Gun Assault Rifle Ballistic Cannon Improved Light Cannon Launcher Rocket Launcher Piercing Weapon Makeshift Spear Build | -11 -10 -10 -10 -9 -8 -8 ------- Run | Yrd Mat Min Exi Min Mat Sto Slots Evolved 4 | . . . . . 4 . Power . | . . . . . . . Propulsion 2 | . . . . . 2 . Utility 2 | . . . . . 2 . Weapon . | . . . . . . . Parts Attached 48 | 8 12 3 4 . 10 11 Power 4 | 1 1 . . . 1 1 Engine 2 | 1 . . . . . 1 Core 2 | . 1 . . . 1 . Reactor . | . . . . . . . Propulsion 14 | 2 3 . 3 . 3 3 Treads 7 | 2 3 . . . . 2 Leg 7 | . . . 3 . 3 1 Wheel . | . . . . . . . Hover . | . . . . . . . Flight . | . . . . . . . Utility 10 | 2 4 . . . 3 1 Device 4 | 1 1 . . . 2 . Storage 3 | 1 2 . . . . . Processor 2 | . . . . . 1 1 Hackware 1 | . 1 . . . . . Protection . | . . . . . . . Artifact . | . . . . . . . Weapon 20 | 3 4 3 1 . 3 6 Energy Gun 3 | 2 . . . . . 1 Energy Cannon 3 | . 1 . . . . 2 Ballistic Gun 8 | 1 3 2 1 . 1 . Ballistic Cannon 1 | . . . . . . 1 Launcher 4 | . . 1 . . 2 1 Special Weapon . | . . . . . . . Impact Weapon . | . . . . . . . Slashing Weapon . | . . . . . . . Piercing Weapon 1 | . . . . . . 1 Special Melee Weapon . | . . . . . . . Unidentified Prototypes 2 | . . . 1 . . 1 Parts Lost 17 | . 1 . . . 1 15 Power 3 | . . . . . 1 2 Propulsion 5 | . 1 . . . . 4 Utility 4 | . . . . . . 4 Weapon 5 | . . . . . . 5 Highest Loss Streak 6 | . 1 . . . 1 6 To Critical Strikes . | . . . . . . . Average Slot Usage (%) 97 | . 100 100 99 100 95 61 Engine 2 | . 5 . . . . 1 Core 10 | . 8 14 14 14 7 1 Treads 21 | . 28 28 16 . . . Leg 6 | . . . 11 28 32 20 Device 2 | . 3 . . . 9 6 Storage 13 | . 14 14 14 14 9 7 Processor 1 | . . . . . 9 6 Hackware 11 | . 11 14 14 14 9 5 Energy Gun 2 | . 4 . . . . 1 Energy Cannon 3 | . 8 . . . . . Ballistic Gun 19 | . 14 27 28 28 11 . Naked Turns 12 | . . . . . . 12 Heaviest Build 94 | 13 90 89 89 89 94 94 Greatest Support 85 | 40 40 40 60 60 85 85 Greatest Overweight (x) 4 | . 2 2 4 1 1 2 Average Overweight (x) 1 | . 1 2 1 1 1 . Largest Inventory Capacity 25 | 8 25 25 25 25 25 25 Average Capacity 22 | 7 21 25 25 25 25 21 Most Carried 25 | 5 25 25 25 25 25 25 Average Carried 20 | 3 18 24 24 25 24 20 Final Capacity 25 | 8 25 25 25 25 25 5 Final Carried 25 | 5 25 25 25 25 25 5 Class Distribution -------------------- 88% | Mutant 10% | Skirmisher Dominant Class ---------------- Mutant | -10/Materials Mutant | -10/Mines Mutant | -10/Exiles Mutant | -9/Mines Skirmisher | -8/Materials Mutant | -8/Storage Resources | -11 -10 -10 -10 -9 -8 -8 ----------- Run | Yrd Mat Min Exi Min Mat Sto Matter Collected 1953 | 421 445 101 106 60 508 312 Remotely . | . . . . . . . Salvage Created 2646 | 322 739 154 . 241 726 464 Parts 208 | 35 51 11 . 15 62 34 Haulers Intercepted 5 | . 2 . . . 1 2 Recyclers Shooed 8 | 1 3 . . 2 1 1 Parts Field Recycled . | . . . . . . . Retrieved Matter . | . . . . . . . Parts Self-Destructed . | . . . . . . . Prevented . | . . . . . . . Kills | -11 -10 -10 -10 -9 -8 -8 ------- Run | Yrd Mat Min Exi Min Mat Sto Combat Hostiles Destroyed 59 | . 12 6 . 4 24 13 Melee 3 | . . . . . . 3 Guns 17 | . 9 3 . 4 1 . Cannons 6 | . 3 . . . . 3 AOE 33 | . . 3 . . 23 7 Classes Destroyed 11 | 3 5 . . . 2 1 Worker 11 | 4 2 . . . 5 . Builder 8 | . . . . . 6 2 Tunneler 11 | 9 1 . . . 1 . Hauler 5 | . 2 . . . 1 2 Recycler 6 | 1 2 . . 2 1 . Operator 3 | . 2 . . . 1 . Watcher 5 | . 3 . . . 1 1 Swarmer 16 | . 3 3 . 4 6 . Grunt 38 | . 9 3 . . 17 9 Sentry 4 | . . . . . . 4 Hunter 1 | . . . . . 1 . Best Kill Streak 9 | 2 3 3 . 4 7 9 Combat Bots Only 6 | . 3 3 . 4 6 6 Max Kills in Single Turn 3 | 1 1 2 . 2 3 2 Gunslinging 1 | . . . . 1 . . Exploded 3 | . . 2 . . 3 2 Melee 1 | . . . . . . 1 Uniques/NPCs Destroyed . | . . . . . . . Combat | -11 -10 -10 -10 -9 -8 -8 -------- Run | Yrd Mat Min Exi Min Mat Sto Hostile Shots Fired 299 | . 62 8 . 8 51 170 Missed 89 | . 23 1 . 2 18 45 Damage Taken 3383 | . 668 114 . 47 454 2100 Core 678 | . 122 . . . 45 511 Absorbed by Shields . | . . . . . . . Core Remaining (%) 75 | 100 . . . 51 . . Volleys Fired 222 | 34 76 11 . 7 63 31 Largest 2 | 2 2 2 . 2 2 2 Hottest 136 | 80 80 40 . 40 53 136 Shots Fired 367 | 68 150 19 . 14 79 37 Gun 270 | 68 131 16 . 14 35 6 Cannon 38 | . 19 . . . . 19 Launcher 59 | . . 3 . . 44 12 Special . | . . . . . . . Kinetic 127 | . 55 16 . 14 35 7 Thermal 181 | 68 95 . . . . 18 Explosive 59 | . . 3 . . 44 12 Electromagnetic . | . . . . . . . Robot Hit Streak 9 | 9 7 6 . 5 8 4 Robot Miss Streak 4 | 3 4 3 . 4 4 3 Penetration Max . | . . . . . . . Secondary Targets 2 | . . 1 . 1 . . Max Gunslinging Chain 1 | . . 1 . 1 . . Shots Hit Robots 211 | 41 90 9 . 10 38 23 Core Hits 176 | 15 38 7 . 8 72 36 Critical Kills 2 | . 2 . . . . . Critical Parts Destroyed . | . . . . . . . Critical Strikes 3 | . 2 . . . . 1 Destroy 2 | . 2 . . . . . Impale 1 | . . . . . . 1 Melee Attacks 17 | . . . . . . 17 Impact . | . . . . . . . Slashing . | . . . . . . . Piercing 17 | . . . . . . 17 Sneak Attacks 2 | . . . . . . 2 Combat Hostiles . | . . . . . . . Follow-up Attacks . | . . . . . . . Damage Inflicted 7348 | 479 1202 261 . 128 3267 2011 Guns 1824 | 479 796 129 . 128 263 29 Cannons 474 | . 219 . . . . 255 Explosions 4662 | . 187 132 . . 3004 1339 Melee 311 | . . . . . . 311 Ramming 77 | . . . . . . 77 Kinetic 849 | . 239 129 . 128 263 90 Thermal 1534 | 479 776 . . . 85 194 Explosive 4577 | . 187 132 . . 2919 1339 Electromagnetic . | . . . . . . . Impact . | . . . . . . . Slashing . | . . . . . . . Piercing 311 | . . . . . . 311 Highest Corruption 6 | . 2 2 2 2 . 6 Average Corruption 2 | . 2 2 2 2 . 5 Corruption Purged . | . . . . . . . Corruption Blocked . | . . . . . . . Effects 75 | . 34 23 12 1 . 5 Message Errors 19 | . 9 5 3 1 . 1 Matter Fused 17 | . 6 6 4 . . 1 Heat Flow Errors 10 | . 5 3 1 . . 1 Energy Discharges 7 | . 5 1 1 . . . Parts Rejected 1 | . . . . . . 1 Parts Fused 1 | . . . 1 . . . Data Loss (minor) 12 | . 5 6 . . . 1 Data Loss (major) 4 | . . 2 2 . . . Alerts 2 | . 2 . . . . . Weapon Failures 2 | . 2 . . . . . Overload Shots . | . . . . . . . Overflow Damage 177 | . 103 . . . 41 33 Projectiles . | . . . . . . . Explosions 164 | . 103 . . . 41 20 Melee 13 | . . . . . . 13 Knockbacks . | . . . . . . . Impact . | . . . . . . . Kinetic . | . . . . . . . Secondary . | . . . . . . . Self-Inflicted Damage 354 | . 223 32 . . 29 70 Shots 7 | . 3 1 . . 1 2 Rammed 1 | . . . . . . 1 Targets Rammed 14 | . . . . . . 14 Kicked 13 | . . . . . . 13 Crushed . | . . . . . . . Highest Temperature 472 | 154 252 241 257 . 21 472 Average Temperature 63 | 47 59 86 135 . 6 108 Received Heat Transfer 1332 | . 213 39 . . 171 909 Siege Activations . | . . . . . . . Robots Corrupted . | . . . . . . . Combat Hostiles . | . . . . . . . Parts Fried . | . . . . . . . Impact Corruptions . | . . . . . . . Robots Melted . | . . . . . . . Combat Hostiles . | . . . . . . . Parts Melted 2 | 1 1 . . . . . Heat Transferred 3214 | 1075 1719 . . . 50 370 Parts Sabotaged . | . . . . . . . Parts Stolen . | . . . . . . . Parts Stripped . | . . . . . . . Power Chain Reactions . | . . . . . . . Alert | -11 -10 -10 -10 -9 -8 -8 ------- Run | Yrd Mat Min Exi Min Mat Sto Peak Influence 848 | 65 220 110 . 115 821 848 Initial 346 | . 3 10 . . 44 346 Average 145 | 25 72 30 . 109 546 640 Maximum Alert Level 3 | . 1 . . . 3 3 Low Security (%) 81 | 100 93 100 . 100 13 . Level 1 4 | . 6 . . . 12 5 Level 2 7 | . . . . . 36 58 Level 3 6 | . . . . . 37 35 Level 4 . | . . . . . . . Level 5 . | . . . . . . . High Security . | . . . . . . . Max Security . | . . . . . . . Squads Dispatched 16 | . 3 1 . . 5 7 Investigation 5 | . 1 . . . 2 2 Extermination . | . . . . . . . Reinforcement 6 | . 2 . . . 3 1 Assault 3 | . . 1 . . . 2 Garrison 2 | . . . . . . 2 Intercept . | . . . . . . . Searches Triggered . | . . . . . . . Construction Impeded 3 | . . . . . 2 1 Haulers Reinforced . | . . . . . . . Active Scanning Responses . | . . . . . . . Cargo Convoy Interrupts . | . . . . . . . Stealth | -11 -10 -10 -10 -9 -8 -8 --------- Run | Yrd Mat Min Exi Min Mat Sto Distress Signals 3 | . 1 . . . . 2 Communications Jammed . | . . . . . . . Distress Signals . | . . . . . . . Times Spotted 92 | . 28 7 . 3 29 25 Peak Tracking Total 11 | . 5 4 . 3 7 11 Tactical Retreats 3 | . 2 . . . . 1 Traps | -11 -10 -10 -10 -9 -8 -8 ------- Run | Yrd Mat Min Exi Min Mat Sto Traps Triggered 3 | . 1 . . . . 2 Indirectly . | . . . . . . . Trap Hack Attempts . | . . . . . . . Triggered . | . . . . . . . Disarmed . | . . . . . . . Reprogrammed . | . . . . . . . Reused . | . . . . . . . Traps Extracted . | . . . . . . . Installed . | . . . . . . . Triggered . | . . . . . . . Machines | -11 -10 -10 -10 -9 -8 -8 ---------- Run | Yrd Mat Min Exi Min Mat Sto Machines Disabled 10 | . 3 . . . 4 3 Max in Single Turn 2 | . 2 . . . 2 1 Machines Repaired . | . . . . . . . Machines Dismantled . | . . . . . . . Machines Sabotaged . | . . . . . . . Overloaded Fab Kills . | . . . . . . . Hacking | -11 -10 -10 -10 -9 -8 -8 --------- Run | Yrd Mat Min Exi Min Mat Sto Machines Accessed 12 | . 6 . 2 . 2 2 Terminals 8 | . 4 . . . 2 2 Fabricators . | . . . . . . . Repair Stations . | . . . . . . . Recycling Units 2 | . 2 . . . . . Scanalyzers . | . . . . . . . Garrison Access . | . . . . . . . Total Hacks 35 | . 19 . 6 . 6 4 Successful 16 | . 7 . 6 . . 3 Failed 18 | . 11 . . . 6 1 Catastrophic 5 | . 3 . . . 2 . Database Lockouts 1 | . 1 . . . . . Manual 35 | . 22 . 2 . 6 5 Terminals 23 | . 13 . . . 6 4 Fabricators . | . . . . . . . Repair Stations . | . . . . . . . Recycling Units 6 | . 6 . . . . . Scanalyzers . | . . . . . . . Garrison Access . | . . . . . . . Terminal Hacks 13 | . 4 . 6 . . 3 Record 6 | . . . 5 . . 1 Part Schematic 1 | . 1 . . . . . Robot Analysis 1 | . 1 . . . . . Open Door 1 | . . . . . . 1 Branch Access Points 1 | . 1 . . . . . Fabricator Index 1 | . 1 . . . . . Zone Layout 1 | . . . . . . 1 Derelict Proto ID Bank 1 | . . . 1 . . . Fabricator Hacks . | . . . . . . . Repair Station Hacks . | . . . . . . . Recycling Unit Hacks . | . . . . . . . Scanalyzer . | . . . . . . . Garrison Access Hacks . | . . . . . . . Unauthorized Hacks 3 | . 3 . . . . . Terminals 1 | . 1 . . . . . Operators 1 | . 1 . . . . . Fabricators . | . . . . . . . Repair Stations . | . . . . . . . Recycling Units 2 | . 2 . . . . . Reject 1 | . 1 . . . . . Mask 1 | . 1 . . . . . Scanalyzers . | . . . . . . . Garrison Access . | . . . . . . . Data Cores Recovered 1 | . . . . . 1 . Used . | . . . . . . . Hacking Detections 8 | . 5 . . . 2 1 Full Trace Events 6 | . 3 . . . 2 1 Feedback Events . | . . . . . . . Feedback Blocked . | . . . . . . . Robot Schematics Acquired . | . . . . . . . Robots Built . | . . . . . . . Authchips . | . . . . . . . Time . | . . . . . . . Total Robot Build Rating . | . . . . . . . Part Schematics Acquired 1 | . 1 . . . . . Parts Built . | . . . . . . . Authchips . | . . . . . . . Time . | . . . . . . . Total Part Build Rating . | . . . . . . . Parts Repaired . | . . . . . . . Time . | . . . . . . . Parts Recycled . | . . . . . . . Recycled Matter . | . . . . . . . Retrieved Matter . | . . . . . . . Retrieved Components . | . . . . . . . Parts Scanalyzed . | . . . . . . . Part Schematics Acquired . | . . . . . . . Parts Damaged . | . . . . . . . Bothacking | -11 -10 -10 -10 -9 -8 -8 ------------ Run | Yrd Mat Min Exi Min Mat Sto Used RIF Installer . | . . . . . . . Robots Hacked . | . . . . . . . Non-combat . | . . . . . . . Combat . | . . . . . . . Robot Hacks Applied . | . . . . . . . Relay Couplers Released . | . . . . . . . Fabnet Peak Effective % . | . . . . . . . Robots Rewired . | . . . . . . . Allies Hacked . | . . . . . . . Hacks Repelled . | . . . . . . . Allies | -11 -10 -10 -10 -9 -8 -8 -------- Run | Yrd Mat Min Exi Min Mat Sto Total Allies 3 | . . 1 . . . 2 Largest Group 2 | . . 1 . . . 2 Highest-Rated Group 62 | . . 31 . . . 62 Highest-Rated Ally 31 | . . 31 . . . 31 Total Orders 1 | . . . 1 . . . STAY 1 | . . . 1 . . . Ally Attacks 17 | . . 5 . . . 12 Total Damage 317 | . . 87 . . . 230 Kills 5 | . . 1 . . . 4 Allies Corrupted . | . . . . . . . Allies Melted . | . . . . . . . Turrets Deployed 2 | . . . 2 . . . Intel | -11 -10 -10 -10 -9 -8 -8 ------- Run | Yrd Mat Min Exi Min Mat Sto Robot Analysis Total 1 | . 1 . . . . . Derelict Logs Recovered 2 | . . 2 . . . . Drone Launches . | . . . . . . . Drone Recoveries . | . . . . . . . Exploration | -11 -10 -10 -10 -9 -8 -8 ------------- Run | Yrd Mat Min Exi Min Mat Sto Turns Passed 7236 | 496 2793 1811 907 125 716 388 Spaces Moved 2701 | 236 1010 553 375 62 306 159 Core 31 | 3 . . . . . 28 Treads 1967 | 233 1010 553 160 . . 11 Legs 703 | . . . 215 62 306 120 Wheels . | . . . . . . . Hover . | . . . . . . . Flight . | . . . . . . . Fastest Speed 50 | 50 160 320 170 170 170 50 Average Speed 237 | 158 245 320 236 170 178 154 Slowest Speed 480 | 160 320 320 480 170 180 250 Overloaded Moves . | . . . . . . . Propulsion Burnouts . | . . . . . . . Robots Hopped 6 | . . . 6 . . . Cave-ins Triggered 1 | . . . . . . 1 Exploration Rate (%) 48 | 12 100 95 62 21 22 28 Regions Visited 6 Branch Regions 4 Pre-discovered Areas 2 | . . 1 1 . . . Known Exits Taken 2 | . 1 . 1 . . . Unknown Exits Taken 4 | 1 . 1 . 1 1 . Scrap Searched 1 | . . 1 . . . . Spaces Dug 64 | . . 20 . . 43 1 Terrain Destroyed 376 | . 10 27 . . 281 58 Melee 1 | . . . . . . 1 Projectile . | . . . . . . . AOE 375 | . 10 27 . . 281 57 Terrain Rammed . | . . . . . . . Walls Destroyed . | . . . . . . . Machines Disabled . | . . . . . . . Actions | -11 -10 -10 -10 -9 -8 -8 --------- Run | Yrd Mat Min Exi Min Mat Sto Total 3139 | 286 1182 577 391 68 396 239 Wait 91 | 4 58 7 6 . 12 4 Move 2685 | 235 1009 552 364 61 305 159 Hop 4 | . . . 4 . . . Pick Up 35 | 5 21 2 4 . 3 . Fast Attach 19 | 7 . . 2 . 3 7 Attach 6 | . 1 . . . 2 3 Detach 1 | . . . . . . 1 Swap 23 | 1 11 3 2 . 5 1 Drop 22 | . 6 2 9 . 3 2 Fire 222 | 34 76 11 . 7 63 31 Melee 17 | . . . . . . 17 Ram 1 | . . . . . . 1 Kick 13 | . . . . . . 13 Crush . | . . . . . . . Escape Stasis . | . . . . . . . Rewire . | . . . . . . . Trap . | . . . . . . . Miscellaneous . | . . . . . . . Route ------- -11/Scrapyard -10/Materials (discovered 5 exits: [*Mat x3] / *Min / [*Sub]) -10/Mines (discovered 3 exits: [*Mat x2] / *Exi) -10/Exiles (discovered 2 exits: *Min x2) -9/Mines -8/Materials -8/Storage History --------- Turn | Location | Event 51 | -11/Scrapyard | Discovered new exit (range 14) 497 | -11/Scrapyard | Entered Materials 498 | -10/Materials | Build established: Mutant 1059 | -10/Materials | Discovered new exit (range 4) 1093 | -10/Materials | Identified exit to Mines 1278 | -10/Materials | Discovered new exit (range 3) 1692 | -10/Materials | Discovered new exit (range 16) 2542 | -10/Materials | Central database locked down 2727 | -10/Materials | Discovered new exit (range 7) 3290 | -10/Materials | Entered Mines 3484 | -10/Mines | Discovered new exit (range 8) 3762 | -10/Mines | A weapon hastily lodged in a ceiling crevice suddenly fell to the ground 3853 | -10/Mines | Learned location of Zion (-6) 4037 | -10/Mines | Met a Derelict testing a Signal Generator 4039 | -10/Mines | Discovered new exit (range 9) 4449 | -10/Mines | Received a Rocket Launcher from a helpful Derelict 4977 | -10/Mines | Deemed a non-threat by the Exiles lab entrance 4977 | -10/Mines | Discovered new exit (range 5) 5101 | -10/Mines | Entered Exiles 5102 | -10/Exiles | Identified exit to Mines 5197 | -10/Exiles | Met 8R-AWN 5255 | -10/Exiles | Met EX-HEX 5351 | -10/Exiles | Met EX-BIN 5399 | -10/Exiles | Aligned with FarCom system 5402 | -10/Exiles | Given EX-Vault access code 5492 | -10/Exiles | Opened EX-Vault 5515 | -10/Exiles | DAS Turret deployed 5525 | -10/Exiles | DAS Turret deployed 5599 | -10/Exiles | Found Prototype Ballistic Gun 5624 | -10/Exiles | Found Prototype Leg 5624 | -10/Exiles | Identified Potential Leg 5638 | -10/Exiles | Identified XL Autogun Array 5656 | -10/Exiles | Found Potential Leg 5799 | -10/Exiles | Warned to stay clear of 0b10 Research branches 5891 | -10/Exiles | Met EX-DEC 6008 | -10/Exiles | Stole two prototypes: Potential Leg, XL Autogun Array 6008 | -10/Exiles | Entered Mines 6070 | -9/Mines | Discovered new exit (range 11) 6133 | -9/Mines | Entered Materials 6133 | -8/Materials | Evolved 4 slots: Propulsion x2, Utility x2 6464 | -8/Materials | Build established: Skirmisher 6833 | -8/Materials | Discovered new exit (range 10) 6849 | -8/Materials | Entered Storage 6872 | -8/Storage | Garrison activated, responded to threat 6939 | -8/Storage | Lost 3 parts (1p1n1w) 7038 | -8/Storage | Garrison activated, responded to threat 7100 | -8/Storage | Crushed by falling debris 7131 | -8/Storage | Lost 6 parts (1p1n3u1w) 7170 | -8/Storage | Core integrity fell below 50% 7185 | -8/Storage | Core integrity fell below 20% 7209 | -8/Storage | Lost 5 parts (2n1u2w) 7209 | -8/Storage | Met a pair of Derelict thieves 7237 | -8/Storage | Destroyed by G-47 Trooper with Particle Gun Last Messages --------------- 07218_ BP-A8Y(g) suffers critical hit (Burn). 07219_ ALERT: Breach in storage area. Dispatching assault force. 07219_ BP-A8Y(g): "So much for stealth, let's take what we have and get out of here before it's too late." 07219_ Y-45 Defender destroyed. 07219_ BP-A8Y(g) overheating. 07220_ BP-A8Y(g) heat damages Imp. Heat Sink, Carbon-fiber Leg, Lgt. Angular Momentum Engine, Imp. Heat Sink. 07220_ BP-A8Y(g) system corrupted by crushing effect. 07220_ Y-45 Defender destroyed. 07220_ BP-A8Y(g) destroyed. 07221_ Critical hit (Burn: +37). 07222_ G-47 Trooper destroyed. 07225_ Acquired 102 matter. 07228_ B-36 Bruiser destroyed. 07229_ System corrupted: Heat flow error (+238). 07232_ 0D-4FX(g) destroyed. Map ----- +----------------------------------------------------+ | ???????????????# ###"######### # " !!#???? | | ???????????????# #=! ^ ####% #!!!!#???? | | ?????????????#?# #![= ^ + ########???? | | ?????????????#T# #!!""" ###+### #??????????? | | ?????????????? + #!="" ## ####??????????? | | ???????????????# #*!"" ### ??????????????? | | ???????????????# /![!! #?# "?????????????? | | ???????????????# #!! #?##T#?????????????? | | ??????????????## ############??###?????????????? | | ??????????????# #"T"####?????????????????????? | | ??????????????# #?????????????????????? | | ??????????????# #?????????????????????? | | ??????????????# #####= #?????????????????????? | | ??????????????## ###???# #?????????????????????? | | ???????????????# ?????## ##????##??????????????? | | ???????????????#+????## #####T#"?????????????? | | ?????????????????????+ "?????????????? | | ?????????????????????## T "?????????????? | | ??????????????????????# #######"?????????????? | | ??????????????????????##+###????????????????????? | | ??????????????????????# ![=##???????????????????? | | ??????????????????????# %!%T#???????????????????? | | ??????????????????????##"Y"###??????????????????? | | ??????????????????????#![!g[%#??????????????????? | | ??????????????????????# ggg[]#??????????????????? | | ??????????????????????#[[@==*#??????????????????? | | ??????????????????????#[ [[ ]#??????????????????? | | ??????????????????????########??????????????????? | | ????????????????????????????????????????????????? | | ????????????????????????????????????????????????? | | ????????????????????????????????????????????????? | | ?????????Y??????????????????????????????????????? | | ????????????????????????????????????????????????? | | | | | | | | | | | | | | | | | | | | | | | | | | | | | | | | | | | +----------------------------------------------------+ Best States ------------- Heat Dissipation 31 Energy Generation 14 Energy Capacity 265 Matter Stores 300 Matter Capacity 300 Sight Range 20 Robot Scan Range 15 Terrain Scan Range 16 Terrain Scan Density 10 Evasion (%) 50 Targeting Accuracy 5 Recoil Reduction 2 Offensive Hacking 10 Item Schematics ----------------- Huge Storage Unit | -10/Materials | Hacked Robot Schematics ------------------ None Fabricated ------------ Nothing Alien Tech Used ----------------- None Achievements -------------- Dramatic Entrance Challenges ------------ None Game ------ Seed HeartPlasmaDatajack Manual? 0 Play Time 00:50:13 Cumulative 26.8 hours Start 2024.03.25 @ 22:18:06 End 2024.03.25 @ 23:21:52 Sessions 1 Manual Loads 0 Difficulty Rogue Special Mode None Game No. 38 Rogue 38 Adventurer 0 Explorer 0 Win Type - Total 0 Types 0/0/0/0/0/0/0/0/0 Lore% 23 Gallery% 27 Achievement% 26 Wizard Run 0 Options --------- Layout 1 ASCII 0 Keyboard 1 Movement Numpad Keybinds 0 Fullscreen 1 Font 16/SmallcapsGlow Map View 55x38 Zoom Use 0% Tactical HUD 1 Map Filters NONE Filters NONE Steam 1 RUN: 59555da1-d641-4132-8832-dce1e50467bf